[Event "56th Rubinstein Memorial C 2020"]
[Site "Polanica Zdroj"]
[Date "2020.08.16"]
[Round "2.12"]
[White "Kieca, Aleksandra"]
[Black "Podgorski, Maciej"]
[Result "1/2-1/2"]
[ECO "B92"]
[WhiteElo "1594"]
[BlackElo "1810"]
[Annotator "NA"]
[PlyCount "177"]
[EventDate "2020.08.15"]
[EventType "swiss"]
[EventCountry "POL"]
[SourceTitle "playchess.com"]
[Source "ChessBase"]
[SourceQuality "1"]
[TimeControl "40/5400+30:1800+30"]

1. e4 {[%emt 0:00:00]} c5 {[%emt 0:01:46]} 2. Nf3 {[%emt 0:00:00]} d6 {[%emt 0:00:06]} 3. d4 {[%emt 0:00:00]} cxd4 {[%emt 0:00:06]} 4. Nxd4 {[%emt 0:00:02]} Nf6 {[%emt 0:00:05]} 5. Nc3 {[%emt 0:00:06]} a6 {[%emt 0:00:06]} 6. Be2 {[%emt 0:00:29]} e5 {[%emt 0:00:24]} 7. Nb3 {[%emt 0:00:09]} Be6 {[%emt 0:00:09]} 8. O-O {[%emt 0:00:55]} Be7 {[%emt 0:00:08]} 9. Kh1 {[%emt 0:00:56]} Nbd7 {[%emt 0:01:50]} 10. f4 {[%emt 0:06:25]} exf4 {[%emt 0:01:03]} 11. Bxf4 {[%emt 0:00:17]} Ne5 {[%emt 0:00:07]} 12. Qe1 {[%emt 0:03:43]} O-O {[%emt 0:04:32]} 13. Nd4 {[%emt 0:06:07] B92: Sicilian Najdorf: 6 Be2.} Rc8 {[%emt 0:04:10]} 14. Rd1 {[%emt 0:03:25]} Qb6 {[%emt 0:04:32] [#]} 15. Na4 $146 {[%emt 0:06:56]} ({Predecessor:} 15. Bc1 Qc7 16. Qg3 b5 17. a3 Rfe8 18. Nf5 Bxf5 19. exf5 Kh8 20. h3 h6 21. Rd4 {1-0 (69) Morozevich,A (2787)-Maslak,K (2544) Moscow 2008}) 15... Qa7 {[%emt 0:01:23]} 16. Nc3 b5 {[%emt 0:02:02]} 17. Nf5 {[%emt 0:19:55]} Bxf5 {[%emt 0:03:32]} 18. exf5 {[%emt 0:00:07]} b4 {[%emt 0:01:08]} 19. Nd5 {[%emt 0:01:53]} Nxd5 {[%emt 0:04:00]} 20. Rxd5 {[%emt 0:00:15]} Rxc2 {[%emt 0:00:28]} 21. Bxe5 {[%emt 0:02:11]} dxe5 {[%emt 0:00:06]} 22. Bd3 {[%emt 0:01:53]} Rc6 {[%emt 0:07:57]} 23. Qxe5 {[%emt 0:02:52]} Bf6 {[%emt 0:01:24]} 24. Qe4 {[%emt 0:01:05]} Qb7 {[%emt 0:02:16]} 25. Rc5 {[%emt 0:01:19]} Rfc8 {[%emt 0:00:59]} 26. Rxc6 {[%emt 0:04:16]} Qxc6 {[%emt 0:00:09]} 27. Qxb4 {[%emt 0:00:16]} Rd8 {[%emt 0:01:05]} 28. Qb3 {[%emt 0:03:25]} Be5 {[%emt 0:01:44]} 29. Bc4 {[%emt 0:04:33]} Qf6 {[%emt 0:03:29]} 30. a4 {[%emt 0:18:28]} Rb8 {[%emt 0:07:20]} 31. Qd3 {[%emt 0:00:31]} Rxb2 {[%emt 0:05:00]} 32. Bxa6 {[%emt 0:01:41]} h6 {[%emt 0:00:56]} 33. Bb5 {[%emt 0:01:11]} Qh4 {[%emt 0:02:19]} 34. h3 {[%emt 0:00:29]} Ra2 {[%emt 0:21:50]} 35. Qb3 {[%emt 0:05:36]} Ra1 {[%emt 0:01:29]} 36. Qd3 {[%emt 0:02:54]} Qf4 {[%emt 0:02:47]} 37. g3 {[%emt 0:02:17]} Qf2 {[%emt 0:00:41]} 38. Rxa1 {[%emt 0:01:22]} Bxa1 {[%emt 0:00:30]} 39. Qf1 {[%emt 0:00:40]} Qd4 {[%emt 0:01:43]} 40. Qg2 {[%emt 0:00:00]} Qe5 {[%emt 0:00:00]} 41. Bd3 {[%emt 0:03:55]} Qe3 {[%emt 0:04:56]} 42. Bf1 {[%emt 0:01:38]} Bd4 {[%emt 0:02:07]} 43. Bb5 {[%emt 0:05:16]} h5 {[%emt 0:01:17]} 44. Be2 {[%emt 0:01:26]} h4 {[%emt 0:03:11]} 45. gxh4 {[%emt 0:00:44]} Qa3 {[%emt 0:00:47]} 46. Bb5 {[%emt 0:01:09]} Qb3 {[%emt 0:02:55]} 47. Qa8+ {[%emt 0:03:22]} Kh7 {[%emt 0:00:11]} 48. Qg2 {[%emt 0:00:08]} Qb1+ {[%emt 0:01:24]} 49. Bf1 {[%emt 0:01:05]} Qa1 {[%emt 0:01:37]} 50. Qf3 {[%emt 0:01:51]} Qxa4 {[%emt 0:00:27]} 51. Qe4 {[%emt 0:03:46]} Qa1 {[%emt 0:02:13]} 52. Qd3 {[%emt 0:03:00]} Qb2 {[%emt 0:06:13]} 53. Qe2 {[%emt 0:02:15]} Qc1 {[%emt 0:00:25]} 54. Qh5+ {[%emt 0:00:37]} Kg8 {[%emt 0:00:06]} 55. Qf3 {[%emt 0:00:16]} Qd2 {[%emt 0:02:36]} 56. Qa8+ {[%emt 0:00:35]} Kh7 {[%emt 0:00:02]} 57. Qf3 {[%emt 0:00:14]} Be5 {[%emt 0:03:12]} 58. Qg2 {[%emt 0:00:45]} Qf4 {[%emt 0:01:09]} 59. f6 {[%emt 0:01:02]} Bxf6 {[%emt 0:02:35]} 60. Bd3+ {[%emt 0:00:10]} Kh6 {[%emt 0:01:25]} 61. Qe4 {[%emt 0:01:05]} Qc1+ {[%emt 0:00:37]} 62. Kg2 {[%emt 0:00:19]} Qd2+ {[%emt 0:01:44]} 63. Qe2 {[%emt 0:01:02]} Qc1 {[%emt 0:00:56]} 64. Qe4 {[%emt 0:00:32]} g6 $11 {[%emt 0:00:32]} 65. Be2 {[%emt 0:01:38]} Qe1 {[%emt 0:05:37]} 66. h5 {[%emt 0:01:33]} Bd4 {[%emt 0:03:23]} 67. Qf4+ {[%emt 0:01:03]} g5 {[%emt 0:00:02]} 68. Qd6+ {[%emt 0:00:24]} Kg7 {[%emt 0:02:06]} 69. Qxd4+ {[%emt 0:00:08]} f6 {[%emt 0:00:03]} 70. Qe4 {[%emt 0:00:38]} Qc3 {[%emt 0:00:55]} 71. Qg6+ {[%emt 0:00:51]} Kh8 {[%emt 0:00:05]} 72. Qe8+ {[%emt 0:01:11]} Kg7 {[%emt 0:00:27]} 73. Qe7+ {[%emt 0:00:19]} Kh6 {[%emt 0:01:24]} 74. Qf8+ {[%emt 0:00:29]} Kh7 {[%emt 0:00:05]} 75. Qf7+ {[%emt 0:00:10]} Kh8 {[%emt 0:00:08]} 76. Qe8+ {[%emt 0:02:14]} Kg7 {[%emt 0:00:13]} 77. h6+ {[%emt 0:01:07]} Kxh6 {[%emt 0:00:45]} 78. Qh8+ {[%emt 0:00:07]} Kg6 {[%emt 0:00:08]} 79. Bh5+ {[%emt 0:00:22]} Kf5 {[%emt 0:00:06]} 80. Qh7+ {[%emt 0:00:13]} Ke5 {[%emt 0:00:37]} 81. Qe7+ {[%emt 0:00:11]} Kf4 {[%emt 0:01:32]} 82. Qd6+ {[%emt 0:00:38]} Qe5 {[%emt 0:00:10]} 83. Qxe5+ {[%emt 0:01:18]} Kxe5 {[%emt 0:00:19]} 84. Kf3 {[%emt 0:00:06]} f5 {[%emt 0:00:11]} 85. Kg3 {[%emt 0:00:47]} Kf6 {[%emt 0:00:40]} 86. Bd1 {[%emt 0:00:09]} Ke5 {[%emt 0:01:02]} 87. Bc2 {[%emt 0:00:18]} Kf6 {[%emt 0:00:13]} 88. Kf2 {[%emt 0:00:14]} Ke5 {[%emt 0:00:26]} 89. Kg3 {[%emt 0:00:51]} 1/2-1/2

[Event "56th Rubinstein Memorial C 2020"]
[Site "Polanica Zdroj"]
[Date "2020.08.16"]
[Round "2.13"]
[White "Kielb, Miroslaw"]
[Black "Witkowski, Krzysztof"]
[Result "0-1"]
[ECO "D02"]
[WhiteElo "1394"]
[BlackElo "1791"]
[Annotator "NA RC"]
[PlyCount "84"]
[EventDate "2020.08.15"]
[EventType "swiss"]
[EventCountry "POL"]
[SourceTitle "playchess.com"]
[Source "ChessBase"]
[SourceQuality "1"]
[TimeControl "40/5400+30:1800+30"]

1. d4 {[%emt 0:00:00]} d5 {[%emt 0:00:00]} 2. Nf3 {[%emt 0:00:00]} e6 {[%emt 0:00:00]} 3. Bf4 {[%emt 0:00:16]} Bd6 {[%emt 0:00:00]} 4. Qd2 {[%emt 0:01:23]} f5 {[%emt 0:03:50]} 5. Ne5 {[%emt 0:02:23]} Nf6 {[%emt 0:01:39]} 6. f3 {[%emt 0:01:36]} O-O {[%emt 0:05:44]} 7. Nc3 {[%emt 0:09:02]} c6 {[%emt 0:02:28]} 8. O-O-O {[%emt 0:01:02]} Nh5 {[%emt 0:02:04]} 9. Bg5 {[%emt 0:00:58]} Be7 {[%emt 0:00:29]} 10. h4 {[%emt 0:02:18]} Nd7 {[%emt 0:03:06]} 11. e4 {[%emt 0:01:54]} Ng3 {[%emt 0:25:34]} 12. Rg1 {[%emt 0:02:33]} Nf6 {[%emt 0:02:04]} 13. exf5 {[%emt 0:19:01]} exf5 {[%emt 0:06:48]} 14. Be2 {[%emt 0:11:58]} Nfh5 {[%emt 0:05:41]} 15. f4 {[%emt 0:05:09]} Nf6 {[%emt 0:03:39]} 16. Qe3 {[%emt 0:03:41]} Nfe4 {[%emt 0:07:11]} 17. Nxe4 {[%emt 0:03:40]} Nxe4 {[%emt 0:00:10]} 18. Bd3 {[%emt 0:04:44]} Bf6 {[%emt 0:08:53]} 19. Bxe4 {[%emt 0:01:34]} fxe4 {[%emt 0:00:38]} 20. Rdf1 {[%emt 0:06:58]} Qc7 {[%emt 0:01:00]} 21. g4 {[%emt 0:01:12]} Bxe5 {[%emt 0:00:25]} 22. dxe5 {[%emt 0:00:39]} h6 {[%emt 0:00:22]} 23. Bxh6 {[%emt 0:01:11]} gxh6 {[%emt 0:00:06]} 24. g5 {[%emt 0:01:40]} h5 {[%emt 0:00:15]} 25. g6 {[%emt 0:00:37]} Bg4 {[%emt 0:00:43]} 26. Rxg4 {[%emt 0:01:14]} hxg4 {[%emt 0:00:05]} 27. Qg3 {[%emt 0:00:43]} Qd7 {[%emt 0:03:01]} 28. h5 {[%emt 0:00:46]} Qf5 {[%emt 0:00:23]} 29. Qh4 {[%emt 0:00:52]} Rae8 {[%emt 0:01:19]} 30. b3 {[%emt 0:06:02]} e3 {[%emt 0:07:33]} 31. Rg1 {[%emt 0:00:29]} Qxf4 {[%emt 0:01:37]} 32. h6 {[%emt 0:02:48]} Qxe5 {[%emt 0:03:12]} 33. h7+ {[%emt 0:01:25]} Kg7 {[%emt 0:01:04]} 34. Kb1 {[%emt 0:01:04]} e2 {[%emt 0:00:21]} 35. Re1 {[%emt 0:01:03]} Rf1 {[%emt 0:00:47]} 36. a4 {[%emt 0:01:10]} g3 {[%emt 0:00:48]} 37. h8=Q+ {[%emt 0:01:30]} Rxh8 {[%emt 0:00:09]} 38. Qxh8+ {[%emt 0:01:28]} Kxh8 {[%emt 0:00:08]} 39. g7+ {[%emt 0:00:21]} Kxg7 {[%emt 0:00:08]} 40. Rc1 {[%emt 0:00:00]} Rxc1+ {[%emt 0:00:00]} 41. Kxc1 {[%emt 0:00:56]} e1=R+ {[%emt 0:00:15]} 42. Kd2 {[%emt 0:00:10]} Qe3# {[%emt 0:00:04]} 0-1

[Event "56th Rubinstein Memorial C 2020"]
[Site "Polanica Zdroj"]
[Date "2020.08.16"]
[Round "2.14"]
[White "Borowski, Przemyslaw"]
[Black "Urbaniak, Karol"]
[Result "1/2-1/2"]
[ECO "C00"]
[WhiteElo "1790"]
[BlackElo "1612"]
[Annotator "NA RC"]
[PlyCount "84"]
[EventDate "2020.08.15"]
[EventType "swiss"]
[EventCountry "POL"]
[SourceTitle "playchess.com"]
[Source "ChessBase"]
[SourceQuality "1"]
[TimeControl "40/5400+30:1800+30"]

1. e4 {[%emt 0:00:00]} e6 {[%emt 0:00:00]} 2. Nc3 {[%emt 0:00:03]} d5 {[%emt 0:00:00]} 3. d3 {[%emt 0:00:10]} c5 {[%emt 0:00:02]} 4. g3 {[%emt 0:00:15]} Nc6 {[%emt 0:00:36]} 5. Bg2 {[%emt 0:04:54]} Nf6 {[%emt 0:01:14]} 6. f4 {[%emt 0:00:51]} dxe4 {[%emt 0:07:32]} 7. Nxe4 {[%emt 0:00:42]} Nxe4 {[%emt 0:01:23]} 8. Bxe4 {[%emt 0:00:25]} Bd7 {[%emt 0:01:22]} 9. Ne2 {[%emt 0:02:45]} c4 {[%emt 0:16:46]} 10. d4 {[%emt 0:02:26]} Qc7 {[%emt 0:03:07]} 11. O-O {[%emt 0:02:50]} Nb4 {[%emt 0:08:42]} 12. a3 {[%emt 0:03:31]} Nd5 {[%emt 0:00:22]} 13. f5 {[%emt 0:02:33]} Bd6 {[%emt 0:03:29]} 14. fxe6 {[%emt 0:05:04]} Bxe6 {[%emt 0:01:00]} 15. Nf4 {[%emt 0:00:48]} Nxf4 {[%emt 0:01:35]} 16. Bxf4 {[%emt 0:00:27]} O-O-O {[%emt 0:09:39]} 17. c3 {[%emt 0:04:34]} h5 {[%emt 0:03:40]} 18. Bxd6 {[%emt 0:17:18]} Rxd6 {[%emt 0:02:05]} 19. Bf5 {[%emt 0:05:26]} h4 {[%emt 0:04:58]} 20. g4 {[%emt 0:02:45]} g6 {[%emt 0:05:55]} 21. Bxe6+ {[%emt 0:02:22]} Rxe6 {[%emt 0:00:25]} 22. Qf3 {[%emt 0:01:14]} f5 {[%emt 0:09:15]} 23. gxf5 {[%emt 0:04:12]} Rf6 {[%emt 0:00:09]} 24. Qg4 {[%emt 0:15:18]} Qd7 {[%emt 0:01:49]} 25. Qg5 {[%emt 0:02:52]} Qc6 {[%emt 0:06:18]} 26. Qg2 {[%emt 0:05:08]} Qd6 {[%emt 0:02:46]} 27. Qe2 {[%emt 0:04:14]} Qd5 {[%emt 0:04:32]} 28. Rae1 {[%emt 0:04:42]} gxf5 {[%emt 0:00:37]} 29. Qf3 {[%emt 0:00:44]} Rg8+ {[%emt 0:00:34]} 30. Kf2 {[%emt 0:02:11]} Qb5 {[%emt 0:01:25]} 31. Re2 {[%emt 0:00:32]} Rfg6 {[%emt 0:01:58]} 32. Ke1 {[%emt 0:00:07]} Rg1 {[%emt 0:00:59]} 33. Rxg1 {[%emt 0:01:12]} Rxg1+ {[%emt 0:00:01]} 34. Kf2 {[%emt 0:00:10]} Rb1 {[%emt 0:01:20]} 35. Kg2 {[%emt 0:04:07]} Rxb2 {[%emt 0:00:56]} 36. Rxb2 {[%emt 0:00:25]} Qxb2+ {[%emt 0:00:01]} 37. Kh3 {[%emt 0:00:07]} Qxa3 {[%emt 0:01:04]} 38. Qxf5+ {[%emt 0:00:10]} Kc7 {[%emt 0:00:47]} 39. Qf7+ {[%emt 0:00:20]} Kd8 {[%emt 0:00:30]} 40. Qxc4 {[%emt 0:00:00]} a5 {[%emt 0:00:00]} 41. d5 {[%emt 0:01:57]} Qe7 {[%emt 0:01:44]} 42. Qd4 {[%emt 0:05:23]} Kc7 {[%emt 0:07:05]} 1/2-1/2

[Event "56th Rubinstein Memorial C 2020"]
[Site "Polanica Zdroj"]
[Date "2020.08.16"]
[Round "2.15"]
[White "Lambrecht, Tomasz"]
[Black "Wolak, Julia"]
[Result "0-1"]
[ECO "A58"]
[WhiteElo "1750"]
[BlackElo "1516"]
[Annotator "NA RC"]
[PlyCount "113"]
[EventDate "2020.08.15"]
[EventType "swiss"]
[EventCountry "POL"]
[SourceTitle "playchess.com"]
[Source "ChessBase"]
[SourceQuality "1"]
[TimeControl "40/5400+30:1800+30"]

1. d4 {[%emt 0:00:00]} Nf6 {[%emt 0:00:00]} 2. c4 {[%emt 0:00:00]} c5 {[%emt 0:00:00]} 3. d5 {[%emt 0:00:00]} b5 {[%emt 0:00:00]} 4. cxb5 {[%emt 0:00:00]} a6 {[%emt 0:00:00]} 5. bxa6 {[%emt 0:00:01]} Bxa6 {[%emt 0:00:00]} 6. Nc3 {[%emt 0:00:20]} g6 {[%emt 0:00:51]} 7. e4 {[%emt 0:00:10]} d6 {[%emt 0:00:10]} 8. Bxa6 {[%emt 0:01:41]} Nxa6 {[%emt 0:00:57]} 9. Nf3 {[%emt 0:00:47]} Nd7 {[%emt 0:00:53]} 10. O-O {[%emt 0:00:37]} Bg7 {[%emt 0:00:04]} 11. a4 {[%emt 0:09:01]} Qa5 {[%emt 0:01:09]} 12. Bd2 {[%emt 0:17:00]} O-O {[%emt 0:00:41]} 13. Nb5 {[%emt 0:04:34]} Qb6 {[%emt 0:01:49]} 14. Bc3 {[%emt 0:11:26]} Nf6 {[%emt 0:09:41]} 15. Qe2 {[%emt 0:05:07]} Nc7 {[%emt 0:01:21]} 16. Nxc7 {[%emt 0:01:43]} Qxc7 {[%emt 0:00:05]} 17. Rfc1 {[%emt 0:01:48]} Qd7 {[%emt 0:01:31]} 18. Qc2 {[%emt 0:09:01]} Ra7 {[%emt 0:05:57]} 19. Nd2 {[%emt 0:05:28]} Rfa8 {[%emt 0:02:07]} 20. b3 {[%emt 0:00:17]} Rb8 {[%emt 0:02:30]} 21. Nc4 {[%emt 0:03:35]} Qc7 {[%emt 0:02:58]} 22. Rab1 {[%emt 0:02:56]} Bh6 {[%emt 0:03:32]} 23. Re1 {[%emt 0:05:20]} Nd7 {[%emt 0:00:10]} 24. Na3 {[%emt 0:03:26]} Rab7 {[%emt 0:02:11]} 25. Nc4 {[%emt 0:02:12]} Ra7 {[%emt 0:01:07]} 26. Ba1 {[%emt 0:02:23]} f6 {[%emt 0:05:15]} 27. Na3 {[%emt 0:05:29]} Rab7 {[%emt 0:00:35]} 28. g3 {[%emt 0:01:26]} Rb6 {[%emt 0:02:04]} 29. f4 {[%emt 0:03:18]} Bg7 {[%emt 0:00:12]} 30. Nc4 {[%emt 0:01:46]} R6b7 {[%emt 0:00:30]} 31. Bc3 {[%emt 0:00:49]} Ra8 {[%emt 0:00:47]} 32. Qd2 {[%emt 0:01:10]} Nb6 {[%emt 0:06:16]} 33. Na5 {[%emt 0:00:40]} Rba7 {[%emt 0:00:09]} 34. Nc6 {[%emt 0:00:12]} Ra6 {[%emt 0:00:07]} 35. f5 {[%emt 0:02:38]} Nc8 {[%emt 0:00:51]} 36. g4 {[%emt 0:00:59]} Kf7 {[%emt 0:01:36]} 37. Kg2 {[%emt 0:00:35]} Qb6 {[%emt 0:00:10]} 38. h4 {[%emt 0:00:00]} Qc7 {[%emt 0:00:00]} 39. h5 {[%emt 0:00:00]} g5 {[%emt 0:00:00]} 40. Rec1 {[%emt 0:00:00]} c4 {[%emt 0:00:00]} 41. Bd4 {[%emt 0:13:44]} cxb3 {[%emt 0:05:54]} 42. Ne5+ {[%emt 0:08:29]} fxe5 {[%emt 0:00:13]} 43. Rxc7 {[%emt 0:00:06]} exd4 {[%emt 0:00:42]} 44. Rxb3 {[%emt 0:01:14]} Rxa4 {[%emt 0:00:42]} 45. Qxg5 {[%emt 0:09:06]} Ra2+ {[%emt 0:01:02]} 46. Kf1 {[%emt 0:00:50]} Rh2 {[%emt 0:01:07]} 47. Rc1 {[%emt 0:01:13]} Raa2 {[%emt 0:02:44]} 48. Rg3 {[%emt 0:00:32]} d3 {[%emt 0:02:32]} 49. Qe3 {[%emt 0:00:41]} Be5 {[%emt 0:19:35]} 50. Rg1 {[%emt 0:00:37]} Rae2 {[%emt 0:00:56]} 51. Qf3 {[%emt 0:00:29]} Bd4 {[%emt 0:01:15]} 52. Rxc8 {[%emt 0:00:20]} Rhf2+ {[%emt 0:02:04]} 53. Qxf2 {[%emt 0:00:08]} Rxf2+ {[%emt 0:00:21]} 54. Ke1 {[%emt 0:00:00]} Re2+ {[%emt 0:00:43]} 55. Kf1 {[%emt 0:01:21]} Bxg1 {[%emt 0:00:05]} 56. Rc3 {[%emt 0:00:19]} Rxe4 {[%emt 0:01:45]} 57. Kxg1 0-1

[Event "56th Rubinstein Memorial C 2020"]
[Site "Polanica Zdroj"]
[Date "2020.08.16"]
[Round "2.16"]
[White "Smukowski, Bartosz"]
[Black "Vanduyfhuys, Igor"]
[Result "1/2-1/2"]
[ECO "C57"]
[WhiteElo "1611"]
[BlackElo "1776"]
[Annotator "NA"]
[PlyCount "77"]
[EventDate "2020.08.15"]
[EventType "swiss"]
[EventCountry "POL"]
[SourceTitle "playchess.com"]
[Source "ChessBase"]
[SourceQuality "1"]
[TimeControl "40/5400+30:1800+30"]

1. e4 e5 2. Nf3 Nc6 3. Bc4 Nf6 4. Ng5 Qe7 5. Nxf7 Rg8 6. Ng5 Rh8 7. Bf7+ Kd8 8. Bb3 Ne8 9. Nf7+ Qxf7 10. Bxf7 Nf6 11. Nc3 Bb4 12. a3 Bxc3 13. dxc3 Nxe4 14. Qd3 Rf8 15. Qxe4 Rxf7 16. Bg5+ Ne7 17. O-O-O h6 18. Bxe7+ Rxe7 19. Rhe1 d6 20. Qf3 Be6 21. Rxe5 Ke8 22. Re3 g6 23. Qf6 Kd7 24. Rde1 Rae8 25. f4 a6 26. g4 d5 27. f5 gxf5 28. gxf5 d4 29. cxd4 b5 30. fxe6+ Kd8 31. d5 h5 32. h4 Kc8 33. Rc3 Kb8 34. Rd3 Kc8 35. d6 cxd6 36. Rxd6 Kc7 37. Rd3 a5 38. Rc3+ Kd6 39. Rd1# 1/2-1/2

[Event "56th Rubinstein Memorial C 2020"]
[Site "Polanica Zdroj"]
[Date "2020.08.17"]
[Round "3.1"]
[White "Adamczewski, Maciej"]
[Black "Rudecki, Bartosz"]
[Result "1/2-1/2"]
[ECO "B09"]
[WhiteElo "2045"]
[BlackElo "1831"]
[Annotator "ChessBase"]
[PlyCount "28"]
[EventDate "2020.08.15"]
[EventType "swiss"]
[EventCountry "POL"]
[SourceTitle "playchess.com"]
[Source "ChessBase"]
[SourceQuality "1"]
[TimeControl "40/5400+30:1800+30"]

1. e4 {[%emt 0:06:51]} d6 {[%emt 0:00:00]} 2. Nc3 {[%emt 0:00:32]} g6 {[%emt 0:00:15]} 3. d4 {[%emt 0:00:39]} Bg7 {[%emt 0:00:28]} 4. f4 {[%emt 0:00:15]} Nf6 {[%emt 0:01:15]} 5. Nf3 {[%emt 0:00:15]} c5 {[%emt 0:03:39]} 6. e5 {[%emt 0:05:36]} Ng4 {[%emt 0:01:49]} 7. Bb5+ {[%emt 0:03:01]} Bd7 {[%emt 0:02:29]} 8. e6 {[%emt 0:02:26]} fxe6 {[%emt 0:06:30]} 9. Ng5 {[%emt 0:00:08]} Bxb5 {[%emt 0:01:51]} 10. Nxe6 {[%emt 0:02:17]} Bxd4 {[%emt 0:00:47]} 11. Nxd8 {[%emt 0:01:11]} Bf2+ {[%emt 0:00:09]} 12. Kd2 {[%emt 0:00:12]} Be3+ {[%emt 0:01:18]} 13. Ke1 {[%emt 0:00:09]} Bf2+ {[%emt 0:00:02]} 14. Kd2 {[%emt 0:00:14]} Be3+ {[%emt 0:00:02]} 1/2-1/2

[Event "56th Rubinstein Memorial C 2020"]
[Site "Polanica Zdroj"]
[Date "2020.08.17"]
[Round "3.4"]
[White "Raczek, Krzysztof"]
[Black "Mazalon, Mariusz"]
[Result "1/2-1/2"]
[ECO "B13"]
[WhiteElo "1712"]
[BlackElo "1980"]
[Annotator "ChessBase"]
[PlyCount "66"]
[EventDate "2020.08.15"]
[EventType "swiss"]
[EventCountry "POL"]
[SourceTitle "playchess.com"]
[Source "ChessBase"]
[SourceQuality "1"]
[TimeControl "40/5400+30:1800+30"]

1. e4 {[%emt 0:00:00]} c6 {[%emt 0:00:45]} 2. d4 {[%emt 0:00:11]} d5 {[%emt 0:00:23]} 3. exd5 {[%emt 0:00:58]} cxd5 {[%emt 0:00:16]} 4. Bd3 {[%emt 0:01:07]} Nc6 {[%emt 0:01:57]} 5. c3 {[%emt 0:00:09]} Nf6 {[%emt 0:04:46]} 6. h3 {[%emt 0:00:10]} g6 {[%emt 0:00:25]} 7. Nf3 {[%emt 0:00:15]} Bf5 {[%emt 0:00:27]} 8. Be2 {[%emt 0:02:14]} Bg7 {[%emt 0:00:39]} 9. Bf4 {[%emt 0:02:31]} h6 {[%emt 0:05:34]} 10. O-O {[%emt 0:00:50]} g5 {[%emt 0:04:24]} 11. Bh2 {[%emt 0:00:41]} e6 {[%emt 0:00:08]} 12. Re1 {[%emt 0:01:03]} Ne4 {[%emt 0:00:37]} 13. Nfd2 {[%emt 0:04:18]} Nd6 {[%emt 0:10:38]} 14. Nf1 {[%emt 0:03:36]} Qd7 {[%emt 0:07:38]} 15. Ne3 {[%emt 0:02:30]} Bh7 {[%emt 0:06:31]} 16. Nd2 {[%emt 0:03:57]} O-O {[%emt 0:06:00]} 17. Nb3 {[%emt 0:00:42]} b6 {[%emt 0:01:08]} 18. Ng4 {[%emt 0:04:44]} f6 {[%emt 0:09:25]} 19. Bd3 {[%emt 0:06:44]} Bxd3 {[%emt 0:18:32]} 20. Qxd3 {[%emt 0:01:25]} h5 {[%emt 0:00:59]} 21. Ne3 {[%emt 0:00:54]} f5 {[%emt 0:00:14]} 22. Nc2 {[%emt 0:01:36]} Rae8 {[%emt 0:05:34]} 23. Nd2 {[%emt 0:03:54]} Ne4 {[%emt 0:03:01]} 24. f3 {[%emt 0:02:12]} Nxd2 {[%emt 0:02:20]} 25. Qxd2 {[%emt 0:03:21]} f4 {[%emt 0:00:08]} 26. Qd3 {[%emt 0:00:56]} Qf7 {[%emt 0:01:02]} 27. Qb5 {[%emt 0:01:10]} Ne7 {[%emt 0:00:50]} 28. Qd7 {[%emt 0:00:45]} Nf5 {[%emt 0:00:17]} 29. Qxf7+ {[%emt 0:00:13]} Kxf7 {[%emt 0:00:03]} 30. Nb4 {[%emt 0:02:37]} Rc8 {[%emt 0:01:50]} 31. Nd3 {[%emt 0:03:12]} a5 {[%emt 0:00:13]} 32. a4 {[%emt 0:02:14]} Rc4 {[%emt 0:01:01]} 33. Re2 {[%emt 0:03:14]} Rb8 1/2-1/2

[Event "56th Rubinstein Memorial C 2020"]
[Site "Polanica Zdroj"]
[Date "2020.08.17"]
[Round "3.5"]
[White "Wolak, Julia"]
[Black "Janzer, Hubert"]
[Result "1/2-1/2"]
[ECO "C00"]
[WhiteElo "1516"]
[BlackElo "1893"]
[Annotator "NA RC"]
[PlyCount "95"]
[EventDate "2020.08.15"]
[EventType "swiss"]
[EventCountry "POL"]
[SourceTitle "playchess.com"]
[Source "ChessBase"]
[SourceQuality "1"]
[TimeControl "40/5400+30:1800+30"]

1. e4 {[%emt 0:01:45]} e6 {[%emt 0:00:00]} 2. d3 {[%emt 0:00:04]} d5 {[%emt 0:00:00]} 3. Nd2 {[%emt 0:00:11]} c5 {[%emt 0:00:22]} 4. Ngf3 {[%emt 0:00:20]} Nc6 {[%emt 0:00:47]} 5. g3 {[%emt 0:00:23]} g6 {[%emt 0:00:05]} 6. Bg2 {[%emt 0:00:16]} Bg7 {[%emt 0:00:06]} 7. O-O {[%emt 0:00:20]} Nge7 {[%emt 0:00:12]} 8. Re1 {[%emt 0:00:29]} Qc7 {[%emt 0:01:28] [#]} 9. h3 $146 {[%emt 0:02:00] A08: King's Indian Attack.} ({Predecessor:} 9. h4 h6 10. Nf1 dxe4 11. dxe4 O-O 12. c3 b6 13. Ne3 Ba6 14. Bf1 Bxf1 15. Nxf1 c4 16. Qe2 b5 {1-0 (34) Brankovic,D (2300)-Kotsur,P (2517) chess.com INT 2020}) 9... b6 {[%emt 0:00:52]} 10. Nf1 {[%emt 0:03:38]} a5 {[%emt 0:05:18]} 11. N1h2 {[%emt 0:00:50]} Ra7 {[%emt 0:01:55]} 12. Bf4 {[%emt 0:07:55]} e5 {[%emt 0:07:05]} 13. Bg5 {[%emt 0:04:33]} dxe4 {[%emt 0:01:55]} 14. dxe4 {[%emt 0:00:29]} O-O {[%emt 0:00:33]} 15. c3 {[%emt 0:02:50]} h6 {[%emt 0:01:47]} (15... f6 $5 {[%cal Rf6g5]} 16. Qb3+ Kh8 $15) 16. Be3 {[%emt 0:00:45]} Be6 {[%emt 0:03:38]} 17. Ng4 {[%emt 0:04:31]} Rd8 {[%emt 0:05:32]} 18. Qc1 {[%emt 0:02:08]} Bxg4 {[%emt 0:02:40]} 19. hxg4 {[%emt 0:00:08]} Kh7 {[%emt 0:01:14]} 20. Kh2 {[%emt 0:04:40]} Ng8 {[%emt 0:05:05]} 21. g5 {[%emt 0:04:06]} h5 {[%emt 0:05:19]} 22. Rh1 {[%emt 0:01:28]} Nge7 {[%emt 0:00:30]} 23. Bh3 {[%emt 0:04:43]} Nc8 {[%emt 0:03:03]} 24. g4 {[%emt 0:00:48]} hxg4 {[%emt 0:01:02]} 25. Bxg4 {[%emt 0:00:08]} Kg8 {[%emt 0:04:04]} 26. Qf1 {[%emt 0:02:37]} Nd6 {[%emt 0:03:44]} 27. Nd2 {[%emt 0:00:47]} Qe7 {[%emt 0:01:09]} 28. Qh3 {[%emt 0:02:31]} a4 {[%emt 0:01:48]} 29. Kg2 {[%emt 0:03:10]} a3 $18 {[%emt 0:11:53]} (29... Nd4 $11 {and Black is okay.}) 30. b3 {[%emt 0:02:01]} Nb5 {[%emt 0:01:29]} 31. Rh2 {[%emt 0:06:13]} Qb7 {[%emt 0:03:58]} 32. Rah1 {[%emt 0:04:56]} Kf8 {[%emt 0:00:25]} 33. Be6 {[%emt 0:11:37]} Ne7 {[%emt 0:08:28]} 34. Qf3 {[%emt 0:03:34]} Ng8 {[%emt 0:04:40]} 35. Rh6 {[%emt 0:07:10]} Nd4 {[%emt 0:01:48]} 36. Bxd4 {[%emt 0:01:09]} exd4 {[%emt 0:03:10]} 37. Bd5 {[%emt 0:02:07]} Rxd5 {[%emt 0:02:29]} 38. exd5 {[%emt 0:00:34]} dxc3 {[%emt 0:01:22]} 39. Nc4 {[%emt 0:01:24]} Nxh6 {[%emt 0:00:56]} 40. gxh6 {[%emt 0:00:00]} Bh8 {[%emt 0:00:00]} 41. h7 {[%emt 0:03:14]} b5 {[%emt 0:02:37]} 42. Ne5 {[%emt 0:01:29]} Bxe5 {[%emt 0:00:54]} 43. h8=Q+ {[%emt 0:00:12]} Bxh8 {[%emt 0:00:09]} 44. Rxh8+ {[%emt 0:00:06]} Kg7 {[%emt 0:00:30]} 45. Qxc3+ {[%emt 0:00:41]} f6 {[%emt 0:00:09]} 46. Qh3 {[%emt 0:01:14]} Qxd5+ {[%emt 0:00:18]} 47. Kg1 {[%emt 0:01:59]} Qd1+ {[%emt 0:00:44]} 48. Kg2 {[%emt 0:01:15]} 1/2-1/2